bitfinex-derivatives/quotes_ETHF0:USTF0_20250107
["timestamp","ask_amount","ask_price","bid_price","bid_amount"]
[1736263363772,3.2078,3522.5,3522.2,2.83441356]
[1736263363972,3.2078,3522.5,3520.6,2.6366]
[1736263364269,3.49184,3521.5,3521.3,2.83441356]
[1736263364469,3.2078,3521.5,3521.3,2.83441356]
[1736263364670,0.28404,3521.4,3521.3,2.83441356]
[1736263364863,3.2078,3521.5,3521.4,2.83441356]
[1736263365070,3.2078,3522.9,3522.1,0.28398]
[1736263365369,3.2078,3522.9,3522.7,2.83441356]
[1736263365567,3.2078,3522.9,3521.8,3.2078]
[1736263365568,3.2078,3523.3,3522.8,43.91834356]
[1736263365765,3.49169,3523.3,3523.0,2.83441356]
[1736263365965,0.28389,3523.4,3523.2,2.83441356]
[1736263366269,0.28392,3523.0,3522.4,0.28396]
[1736263366570,3.2078,3523.1,3522.9,40.8]
[1736263367275,0.28388,3523.4,3522.9,40.8]
[1736263367471,3.2078,3523.8,3523.4,2.83441356]
[1736263367663,3.2078,3523.8,3523.7,2.83441356]
[1736263368073,3.2078,3524.3,3523.7,2.83441356]
[1736263368273,3.2078,3524.3,3523.9,2.83441356]
[1736263368572,0.28384,3523.9,3523.8,40.8]
[1736263368771,0.70963,3523.8,3522.5,5.4891]
[1736263369071,3.2078,3523.6,3523.3,2.83441356]
[1736263369272,0.28387,3523.5,3523.4,2.83441356]
[1736263369470,3.2078,3523.6,3522.5,5.4891]
[1736263369672,3.2078,3523.6,3523.3,2.83441356]
[1736263369875,3.2078,3523.6,3523.1,2.83441356]
[1736263370269,3.2078,3523.6,3523.4,2.83441356]
[1736263370578,3.2078,3524.0,3523.5,3.11828356]
[1736263370766,3.2078,3524.0,3523.6,2.83441356]
[1736263371074,3.2078,3524.0,3523.2,2.83441356]
[1736263371075,6.01418247,3523.9,3523.2,2.83441356]
[1736263371274,3.49169,3523.3,3523.2,2.83441356]
[1736263371675,3.2078,3523.3,3523.2,2.83441356]
[1736263371872,3.2078,3523.8,3523.2,6.04221356]
[1736263372064,3.2078,3523.8,3522.5,5.4891]
[1736263372065,3.2078,3524.3,3523.6,3.2078]
[1736263372268,0.2243,3524.2,3523.0,2.5972]
[1736263372473,0.2243,3524.2,3523.8,3.2078]
[1736263372670,3.2078,3523.9,3523.7,2.83441356]
[1736263372878,0.28386,3523.7,3523.6,2.83441356]
[1736263373080,0.28393,3522.9,3522.5,5.77305]
[1736263373271,3.2078,3523.2,3522.5,5.4891]
[1736263373571,0.28392,3522.9,3522.8,2.83441356]
[1736263373871,3.2078,3523.1,3523.0,0.28391]
[1736263374072,3.2078,3523.1,3521.9,3.2078]
[1736263374377,0.28397,3522.4,3522.3,2.83441356]
[1736263374573,3.2078,3522.7,3522.3,2.83441356]
[1736263374771,0.28396,3522.6,3522.1,41.08398]
[1736263374976,0.70973,3523.4,3522.7,0.28394]
[1736263374977,0.28391,3523.2,3522.7,0.28394]
[1736263375177,0.28391,3523.2,3522.1,40.8]
[1736263375178,3.2078,3524.0,3523.3,2.83441356]
[1736263375374,3.49164,3524.0,3523.9,2.83441356]
[1736263375575,0.2243,3524.2,3523.9,2.83441356]
[1736263375779,0.2243,3524.2,3524.1,2.83441356]
[1736263375975,0.2243,3524.2,3524.1,3.11824356]
[1736263376178,0.2243,3524.2,3524.1,43.63441356]
[1736263376481,0.28387,3523.6,3523.3,0.28389]
[1736263376674,3.2078,3523.9,3523.6,2.83441356]
[1736263376876,0.28387,3523.6,3523.2,2.9501]
[1736263377184,3.2078,3523.9,3523.8,2.83441356]
[1736263377185,3.49164,3523.9,3523.8,2.83441356]
[1736263377583,0.28384,3523.9,3523.8,2.83441356]
[1736263377879,0.28389,3523.3,3523.2,2.6662]
[1736263378076,3.2078,3523.3,3521.9,3.2078]
[1736263378279,0.28383,3524.1,3523.2,2.83441356]
[1736263378482,3.4321,3524.2,3524.1,2.83441356]
[1736263379284,4.20373,3525.9,3524.9,0.28376]
[1736263379285,0.28374,3525.3,3524.9,0.28376]
[1736263379483,0.28365,3526.3,3526.0,0.28367]
[1736263379680,0.70903,3526.8,3525.7,3.2078]
[1736263379880,0.9926,3527.0,3526.1,0.28366]
[1736263380087,3.2078,3527.6,3525.6,5.7938]
[1736263380289,3.2078,3527.6,3526.8,3.2078]
[1736263380486,3.2078,3527.6,3525.7,2.7545]
[1736263380783,0.2835,3528.2,3527.8,0.28352]
[1736263381090,8.4411195,3529.6,3527.9,3.2078]
[1736263381286,8.4411195,3529.6,3526.9,2.586]
[1736263381287,3.2078,3529.6,3528.8,3.2078]
[1736263381483,0.28336,3529.9,3528.8,3.2078]
[1736263381688,6.01418247,3531.1,3529.8,3.2078]
[1736263382183,6.01418247,3531.1,3530.1,3.2078]
[1736263382387,3.2078,3530.2,3528.7,2.5767]
[1736263382584,3.2078,3530.2,3529.3,3.2078]
[1736263382885,3.2078,3530.2,3528.6,2.6597]
[1736263382886,0.28341,3529.3,3528.8,3.2078]
[1736263383086,3.2078,3529.4,3528.8,3.2078]
[1736263383886,6.01418247,3530.0,3528.6,2.6597]
[1736263384089,0.28337,3529.9,3529.2,3.2078]
[1736263384385,0.28337,3529.9,3528.6,2.6597]
[1736263384386,0.28332,3530.4,3529.6,3.2078]
[1736263384586,0.28335,3530.0,3529.7,40.8]
[1736263384793,3.2078,3531.0,3529.2,3.2078]
[1736263384995,3.2078,3530.2,3528.6,5.8675]
[1736263385187,3.2078,3529.8,3528.6,5.8675]
[1736263385486,6.01418247,3530.0,3528.6,5.8675]
[1736263385883,0.28339,3529.6,3529.4,3.2078]
[1736263386190,3.2078,3530.2,3528.8,3.2078]
[1736263386489,0.28343,3529.1,3528.6,2.6597]
[1736263386886,3.2078,3530.4,3529.0,3.2078]
[1736263387087,0.28336,3530.0,3529.6,3.2078]
[1736263387289,3.91598,3531.1,3529.6,3.2078]
[1736263387486,3.91598,3531.1,3529.9,3.2078]
[1736263387793,0.28341,3529.3,3529.2,3.2078]
[1736263387997,3.2078,3530.2,3528.9,2.584]
[1736263388493,3.2078,3530.2,3528.6,2.6597]
[1736263388494,3.2078,3529.6,3528.6,2.6597]
[1736263388692,0.70844,3529.8,3528.7,3.2078]
[1736263388887,9.22198247,3530.0,3529.2,3.2078]
[1736263389093,3.2078,3530.4,3528.8,3.2078]
[1736263389298,0.28338,3529.7,3529.6,3.2078]
[1736263389588,9.22198247,3530.0,3528.6,2.6597]
[1736263389887,0.28346,3528.7,3528.6,2.6597]
[1736263390090,0.28346,3528.7,3528.6,5.8675]
[1736263390291,0.2835,3528.1,3527.7,3.2078]
[1736263390486,0.28353,3527.8,3527.7,3.2078]
[1736263390899,0.70859,3529.1,3527.6,3.2078]
[1736263391088,0.28349,3528.3,3528.2,3.2078]
[1736263391888,0.28342,3529.1,3528.2,3.2078]
[1736263392095,3.2078,3529.7,3528.4,3.2078]
[1736263392592,3.2078,3529.7,3528.2,2.583]
[1736263392593,0.70854,3529.6,3528.2,2.583]
[1736263392896,0.28355,3528.0,3527.2,2.583]
[1736263393092,6.01418247,3529.9,3527.7,3.2078]
[1736263393295,9.22198247,3529.9,3528.6,3.2078]
[1736263393497,3.2078,3529.9,3528.3,3.2078]
[1736263393694,3.2078,3529.9,3528.4,2.5652]
[1736263393890,0.28342,3529.5,3529.1,3.2078]
[1736263394095,3.2078,3529.9,3529.1,3.2078]
[1736263394096,0.28344,3529.2,3529.1,3.2078]
[1736263394297,3.2078,3529.9,3529.1,3.2078]
[1736263394493,0.28349,3528.6,3528.5,2.7132]
[1736263394803,0.28357,3527.7,3527.6,40.8]
[1736263395095,3.2078,3528.4,3526.7,3.2078]
[1736263395295,3.2078,3528.9,3528.0,3.2078]
[1736263395496,3.2078,3528.9,3527.4,5.7908]
[1736263395699,0.28355,3527.9,3527.8,3.2078]
[1736263395895,9.22198247,3529.4,3527.8,3.2078]
[1736263396098,0.28347,3528.9,3528.8,3.2078]
[1736263396400,3.2078,3528.9,3527.9,2.5728]
[1736263396698,3.2078,3528.5,3527.9,2.5728]
[1736263396903,0.28354,3528.0,3527.9,2.5728]
[1736263397097,0.28354,3528.0,3527.9,0.73612]
[1736263397293,0.28364,3526.8,3526.7,2.5922]
[1736263397495,0.28364,3526.8,3526.7,40.8]
[1736263397802,0.2836,3527.4,3525.8,3.2078]
[1736263397995,0.2836,3527.4,3526.4,3.2078]
[1736263398201,0.2836,3527.4,3526.0,3.2078]
[1736263398398,3.2078,3527.1,3525.6,3.2078]
[1736263398600,0.28365,3526.7,3526.5,40.8]
[1736263398903,0.28365,3526.7,3525.7,3.2078]
[1736263398904,3.2078,3526.7,3525.7,3.2078]
[1736263399297,0.28367,3526.5,3525.8,0.28371]
[1736263399495,3.2078,3526.7,3525.8,3.2078]
[1736263399696,0.28374,3525.6,3525.3,8.6476]
[1736263399899,3.2078,3525.9,3525.3,2.6751]
[1736263400098,3.2078,3525.5,3524.8,3.2078]
[1736263400301,3.2078,3525.9,3524.8,3.2078]
[1736263400605,3.2078,3526.4,3525.8,0.28371]
[1736263400805,3.2078,3526.4,3525.3,2.58]
[1736263401299,3.2078,3526.4,3525.8,0.28372]
[1736263401600,1.41779,3527.9,3525.8,0.28372]
[1736263401601,0.28353,3528.2,3527.5,0.28358]
[1736263401804,3.2078,3528.1,3526.6,2.58]
[1736263402099,3.2078,3528.7,3527.2,3.2078]
[1736263402301,3.2078,3528.7,3527.5,3.2078]
[1736263402502,3.2078,3528.7,3527.0,8.506]
[1736263402503,0.28337,3530.2,3529.6,0.28341]
[1736263402703,3.2078,3530.6,3529.4,3.2078]
[1736263403104,3.09334123,3531.5,3530.5,3.2078]
[1736263403302,3.09334123,3531.5,3531.3,3.2078]
[1736263403497,4.04439044,3531.8,3531.7,0.28324]
[1736263403702,1.97039045,3531.8,3531.7,3.49104]
[1736263403999,1.97039045,3531.8,3531.0,3.2078]
[1736263404206,0.28315,3532.9,3531.4,3.2078]
[1736263404426,3.2078,3532.5,3531.4,3.2078]
[1736263404703,3.2078,3531.9,3531.2,3.2078]
[1736263405000,0.2833,3531.1,3530.3,2.579]
[1736263405201,3.2078,3531.5,3530.3,2.579]
[1736263405600,3.2078,3531.5,3530.4,40.8]
[1736263405800,3.2078,3531.5,3529.4,3.2078]
[1736263405801,3.2078,3530.5,3529.4,3.2078]
[1736263406006,3.2078,3529.7,3528.2,8.503]
[1736263406196,5.98619655,3531.0,3528.7,3.2078]
[1736263406197,3.2078,3530.1,3528.7,3.2078]
[1736263406399,3.2078,3530.5,3528.8,3.2078]
[1736263406602,3.2078,3530.5,3529.2,3.2078]
[1736263406603,0.28339,3530.0,3529.2,3.2078]
[1736263406802,3.2078,3530.1,3528.4,3.2078]
[1736263406999,3.2078,3529.8,3528.1,5.9948]
[1736263407201,3.2078,3530.4,3528.9,0.28346]
[1736263407507,3.2078,3530.3,3529.1,3.2078]
[1736263407700,3.2078,3529.2,3528.5,0.28349]
[1736263407906,3.2078,3530.0,3528.3,3.2078]
[1736263408206,0.28400001,3533.7,3528.1,2.787]
[1736263408207,3.2078,3529.2,3528.1,2.787]
[1736263408607,0.28351,3528.5,3527.9,2.5808]
[1736263408808,0.70845,3530.1,3526.8,2.6713]
[1736263408809,3.2078,3528.3,3526.8,2.6713]
[1736263409308,0.28355,3527.9,3526.8,2.6713]
[1736263409505,3.2078,3528.3,3526.8,2.6713]
[1736263409712,3.2078,3527.8,3526.8,2.6713]
[1736263410006,0.28355,3527.9,3527.0,3.2078]
[1736263410206,3.2078,3528.0,3527.4,0.28359]
[1736263410406,3.2078,3528.9,3527.3,3.2078]
[1736263410622,3.2078,3528.9,3528.3,3.2078]
[1736263410623,0.28347,3528.9,3528.3,3.2078]
[1736263410909,3.2078,3529.1,3528.2,0.28352]
[1736263411105,3.2078,3529.6,3528.7,3.2078]
[1736263411403,0.28344,3529.3,3528.3,0.28351]
[1736263411711,3.2078,3529.2,3527.6,3.2078]
[1736263411923,0.28352,3528.3,3527.3,2.5154]
[1736263412207,3.2078,3528.7,3526.9,3.2078]
[1736263412409,0.2836,3527.3,3526.0,5.39139]
[1736263412703,3.2078,3527.4,3526.4,3.2078]
[1736263412911,3.2078,3527.4,3526.0,5.1077]
[1736263413106,0.28366,3526.6,3526.2,3.2078]
[1736263413301,3.2078,3527.4,3525.9,5.2503]
[1736263413501,1.10829076,3550.0,3525.9,2.6713]
[1736263413502,3.2078,3526.9,3525.9,2.6713]
[1736263413703,0.28362,3527.1,3526.2,0.28368]
[1736263413912,3.2078,3527.3,3526.1,3.2078]
[1736263414112,5.98619655,3528.4,3526.1,3.2078]
[1736263414113,3.2078,3527.7,3526.1,3.2078]
[1736263414310,3.2078,3527.3,3526.1,3.2078]
[1736263414609,3.2078,3526.9,3526.3,40.8]
[1736263414905,0.70883,3528.2,3526.3,40.8]
[1736263414906,3.2078,3527.4,3526.5,3.2078]
[1736263415110,3.2078,3527.4,3526.3,40.8]
[1736263415610,3.49139,3527.4,3526.6,0.28365]
[1736263415807,3.2078,3527.4,3526.3,40.8]
[1736263416003,3.2078,3526.9,3526.3,40.8]
[1736263416213,0.28364,3526.8,3526.3,40.8]
[1736263416412,0.28367,3526.4,3526.3,40.8]
[1736263416602,0.28376,3525.3,3524.6,2.94051]
[1736263416806,5.98619655,3526.6,3524.9,3.2078]
[1736263416807,3.2078,3526.0,3524.9,3.2078]
[1736263417001,3.2078,3526.0,3525.4,3.2078]
[1736263417208,3.2078,3526.0,3525.0,3.2078]
[1736263417507,0.28365,3526.6,3525.9,44.2915]
[1736263417712,3.2078,3526.4,3525.9,44.0078]
[1736263417907,0.70887,3528.0,3525.9,40.8]
[1736263417908,3.2078,3526.0,3525.9,40.8]
[1736263418111,3.4915,3526.0,3525.9,40.8]
[1736263418313,3.4915,3526.0,3524.9,3.2078]
[1736263418314,3.2078,3526.0,3524.9,3.2078]
[1736263418515,3.2078,3526.0,3524.6,2.88683819]
[1736263418808,3.2078,3526.0,3525.2,40.8]
[1736263419015,0.28376,3525.3,3525.2,40.8]
[1736263419213,3.2078,3525.6,3525.2,41.08376]
[1736263419427,3.2078,3526.1,3525.3,3.2078]
[1736263419610,3.2078,3526.7,3525.3,3.2078]
[1736263419912,3.2078,3526.7,3525.7,3.2078]
[1736263420120,0.28362,3527.1,3526.4,0.28366]
[1736263420313,3.2078,3527.2,3525.8,3.2078]
[1736263421019,3.2078,3527.2,3524.9,2.6559]
[1736263421020,3.2078,3526.3,3524.9,2.6559]
[1736263421312,3.2078,3526.3,3525.2,40.8]
[1736263421515,0.28373,3525.7,3525.2,40.8]
[1736263421816,0.70907,3527.0,3525.2,40.8]
[1736263421817,3.2078,3525.5,3525.2,40.8]
[1736263422022,0.28382,3524.6,3524.1,3.2078]
[1736263422208,3.2078,3524.9,3524.0,2.7172]
[1736263422515,3.2078,3525.3,3524.3,3.2078]
[1736263422709,0.28373,3525.7,3525.2,0.28376]
[1736263423011,3.2078,3525.8,3524.2,40.8]
[1736263423217,3.2078,3525.3,3524.2,40.8]
[1736263423408,3.2078,3525.3,3524.2,41.02995615]
[1736263423616,3.2078,3524.8,3524.2,40.8]
[1736263423919,0.28384,3524.3,3524.2,40.8]
[1736263424212,3.2078,3524.4,3523.3,0.28391]
[1736263424511,3.2078,3523.9,3523.6,40.8]
[1736263424814,3.2078,3524.4,3523.6,40.8]
[1736263425015,0.28385,3524.3,3523.7,0.28389]
[1736263425214,3.2078,3524.4,3524.2,0.28384]
[1736263425516,3.2078,3524.8,3524.2,0.28384]
[1736263425714,3.2078,3524.8,3523.6,40.8]
[1736263426213,3.2078,3523.8,3523.6,40.8]
[1736263426514,3.2078,3524.4,3523.6,40.8]
[1736263427213,3.2078,3524.9,3523.8,3.2078]
[1736263427407,3.2078,3524.9,3523.6,40.8]
[1736263427609,3.2078,3525.3,3524.4,3.2078]
[1736263427816,3.2078,3524.9,3524.0,3.2078]
[1736263428010,4.03732552,3525.5,3524.0,3.2078]
[1736263428011,3.2078,3525.3,3524.0,3.2078]
[1736263428210,3.2078,3525.8,3524.4,3.2078]
[1736263428411,3.2078,3525.8,3524.5,3.2078]
[1736263428610,3.2078,3525.8,3524.7,3.2078]
[1736263429018,3.2078,3525.8,3525.2,3.2078]
[1736263429216,3.2078,3525.8,3525.7,0.28373]
[1736263429410,3.2078,3527.0,3525.7,3.2078]
[1736263429614,3.2078,3526.9,3526.0,3.2078]
[1736263429914,3.2078,3527.5,3526.8,40.8]
[1736263430111,4.03732552,3528.0,3526.8,40.8]
[1736263430310,3.2078,3528.1,3527.8,0.28356]
[1736263430610,3.2078,3528.1,3527.3,3.2078]
[1736263430809,3.2078,3528.1,3527.4,3.2078]
[1736263431118,3.2078,3528.1,3527.1,2.576]
[1736263431315,0.28363,3526.9,3526.8,40.8]
[1736263432414,0.28368,3526.3,3525.1,3.2078]
[1736263432612,0.70904,3527.1,3525.9,0.28371]
[1736263432613,3.2078,3526.6,3525.9,0.28371]
[1736263432813,3.2078,3527.0,3526.0,40.8]
[1736263433115,3.2078,3526.5,3526.0,40.8]
[1736263433319,3.2078,3526.9,3526.0,40.8]
[1736263433712,3.2078,3526.7,3526.0,40.8]
[1736263434014,0.28374,3525.6,3525.1,0.28377]
[1736263434318,0.28374,3525.6,3524.1,0.70963]
[1736263434319,3.2078,3525.2,3523.9,0.284]
[1736263434515,3.2078,3524.4,3523.2,3.2078]
[1736263434715,0.28382,3524.6,3524.0,0.28386]
[1736263435013,0.28383,3524.5,3524.1,40.8]
[1736263435226,3.2078,3524.7,3524.1,40.8]
[1736263435525,2.97136139,3528.9,3522.8,6.50894126]
[1736263435526,7.24512552,3524.3,3522.8,6.50894126]
[1736263435717,3.2078,3523.6,3522.8,6.50894126]
[1736263435924,3.2078,3523.2,3521.9,2.6057]
[1736263436123,3.2078,3523.0,3522.9,40.8]
[1736263436319,3.2078,3523.4,3522.9,40.8]
[1736263436522,3.2078,3523.9,3522.9,40.8]
[1736263436726,7.24512552,3524.3,3522.9,40.8]
[1736263436929,7.24512552,3524.3,3523.5,0.2839]
[1736263437329,7.24512552,3524.3,3523.3,0.28392]
[1736263437530,7.24512552,3524.3,3523.2,3.2078]
[1736263437531,0.28386,3524.1,3523.2,3.2078]
[1736263437733,3.2078,3524.3,3523.2,3.2078]
[1736263438031,3.2078,3524.3,3522.9,40.8]
[1736263438219,0.28389,3523.7,3523.0,0.28394]
[1736263438528,0.28394,3523.0,3522.9,40.8]
[1736263438726,3.2078,3523.3,3522.9,40.8]
[1736263439326,3.2078,3524.2,3523.2,3.2078]
[1736263439719,3.2078,3524.2,3522.3,6.61432552]
[1736263439720,3.2078,3524.2,3522.3,9.82212552]
[1736263440123,3.2078,3523.7,3522.9,3.2078]
[1736263440327,1.41868,3525.7,3521.6,5.2294]
[1736263440328,3.2078,3523.2,3521.6,5.2294]
[1736263440532,3.2078,3523.4,3522.8,0.28395]
[1736263440825,0.28394,3523.1,3522.0,0.28402]
[1736263441134,0.28392,3523.3,3522.4,3.2078]
[1736263441319,3.2078,3523.4,3522.4,3.2078]
[1736263441521,3.2078,3523.8,3523.6,0.28389]
[1736263441727,3.2078,3523.8,3523.7,40.8]
[1736263441943,3.2078,3524.2,3523.7,40.8]
[1736263442433,3.49168,3523.8,3523.7,40.8]
[1736263443026,12.24512552,3523.8,3521.8,3.2078]
[1736263443232,0.284,3522.3,3521.9,2.88973]
[1736263443525,3.2078,3523.0,3522.0,40.8]
[1736263443726,0.28396,3522.9,3522.3,0.28399]
[1736263443930,3.2078,3523.1,3522.2,3.2078]
[1736263444229,3.2078,3523.1,3522.0,44.0078]
[1736263444437,3.2078,3523.1,3522.3,3.2078]
[1736263444925,0.28391,3523.4,3522.8,0.28395]
[1736263445126,0.28389,3523.7,3523.1,0.28393]
[1736263445333,3.2078,3523.7,3522.8,3.2078]
[1736263445631,3.2078,3523.7,3522.0,40.8]
[1736263445632,3.2078,3523.2,3522.0,40.8]
[1736263445926,3.2078,3522.8,3522.0,40.8]
[1736263446327,3.2078,3522.8,3522.2,3.2078]
[1736263446525,0.28396,3522.8,3522.1,0.28401]
[1736263446726,3.2078,3523.2,3522.0,44.0078]
[1736263446925,3.2078,3523.2,3522.0,40.8]
[1736263447121,3.2078,3523.2,3522.2,3.2078]
[1736263447321,3.2078,3523.2,3522.6,3.2078]
[1736263447527,0.29641344,3529.3,3524.0,0.28386]
[1736263447528,3.2078,3524.3,3524.0,0.28386]
[1736263447829,3.2078,3524.8,3523.5,3.2078]
[1736263448023,4.03732552,3525.2,3522.7,5.95265157]
[1736263448024,3.2078,3524.0,3522.7,5.2732]
[1736263448226,3.2078,3523.6,3523.2,0.28393]
[1736263448431,3.2078,3524.0,3522.7,5.2732]
[1736263448731,0.58720721,3537.8,3523.0,3.91766]
[1736263448732,3.2078,3524.4,3523.0,3.91766]
[1736263449034,3.2078,3524.4,3524.1,41.08385]
[1736263449232,3.2078,3525.3,3524.1,40.8]
[1736263449423,3.2078,3525.3,3524.5,3.2078]
[1736263449732,4.03732552,3525.7,3524.5,0.28382]
[1736263449733,0.28374,3525.6,3524.5,0.28382]
[1736263449928,0.28376,3525.3,3524.8,0.2838]
[1736263450135,0.28377,3525.2,3524.2,2.5902]
[1736263450335,7.24512552,3525.7,3524.6,3.2078]
[1736263450734,3.2078,3525.3,3524.2,2.5902]
[1736263450939,3.2078,3525.3,3524.5,3.2078]
[1736263451137,3.2078,3525.3,3524.2,2.5902]
[1736263451340,3.49156,3525.3,3524.8,0.28379]
[1736263451533,3.2078,3525.7,3524.9,3.2078]
[1736263451835,0.23280512,3527.6,3525.4,3.2078]
[1736263451836,3.2078,3527.1,3525.4,3.2078]
[1736263452035,3.2078,3525.9,3525.6,0.28373]
[1736263452233,3.2078,3526.1,3525.0,2.5248]
[1736263452437,7.24512552,3525.7,3524.4,0.28383]
[1736263452734,3.2078,3525.0,3524.2,5.798]
[1736263452934,3.2078,3525.0,3524.2,2.5902]
[1736263453135,0.28381,3524.7,3524.2,2.87405]
[1736263453334,3.2078,3525.0,3524.2,5.798]
[1736263453535,4.03732552,3525.7,3524.3,3.2078]
[1736263453536,3.2078,3525.4,3524.3,3.2078]
[1736263453842,3.2078,3524.8,3523.9,3.2078]
[1736263454040,3.2078,3524.8,3523.7,2.577]
[1736263454337,4.03732552,3525.7,3523.7,2.577]
[1736263454338,0.28382,3524.6,3524.2,3.2078]
[1736263454538,3.2078,3525.4,3524.1,44.0078]
[1736263454740,3.2078,3525.4,3524.2,3.4918]
[1736263454934,3.2078,3525.9,3524.7,3.2078]
[1736263455236,4.03732552,3526.2,3524.8,40.8]
[1736263455434,3.2078,3526.3,3525.3,3.2078]
[1736263455836,2.77502347,3527.3,3526.2,3.2078]
[1736263455837,3.2078,3527.2,3526.2,3.2078]
[1736263456154,2.06601347,3527.3,3527.2,0.28361]
[1736263456637,4.15770004,3527.7,3527.6,0.28357]
[1736263456837,4.15770004,3527.7,3527.4,0.28358]
[1736263457039,3.2078,3528.3,3527.4,0.28358]
[1736263457238,3.2078,3528.3,3527.6,40.8]
[1736263457443,3.2078,3527.7,3527.6,40.8]
[1736263457636,3.49137,3527.7,3527.6,40.8]
[1736263457834,0.28354,3528.1,3527.6,40.8]
[1736263458034,3.2078,3528.7,3527.6,40.8]
[1736263458240,0.2835,3528.5,3527.8,0.28355]
[1736263458442,3.2078,3528.7,3528.2,0.28353]
[1736263458640,3.2078,3528.7,3527.6,40.8]
[1736263459145,3.2078,3529.5,3529.0,0.28346]
[1736263459452,4.15770004,3530.0,3529.1,3.2078]
[1736263459943,3.2078,3529.4,3528.5,2.5776]
[1736263460133,3.2078,3529.0,3528.5,2.5776]
[1736263460539,3.2078,3528.6,3528.1,2.7275]
[1736263460740,3.2078,3528.6,3527.6,40.8]
[1736263460936,3.2078,3528.2,3527.6,0.28357]
[1736263461136,0.28344,3529.3,3527.6,0.28357]
[1736263461442,3.2078,3529.0,3528.2,40.8]
[1736263461651,0.28347,3528.9,3528.2,41.08352]
[1736263461946,0.70843,3530.2,3528.2,41.08352]
[1736263461947,3.2078,3529.4,3529.0,0.28346]
[1736263462144,3.2078,3529.7,3528.4,4.03732552]
[1736263462447,7.35833552,3530.8,3528.6,0.70873]
[1736263462448,3.2078,3530.1,3528.6,0.70873]
[1736263462639,3.2078,3530.6,3529.2,3.2078]
[1736263463037,3.2078,3531.2,3529.9,4.03732552]
[1736263463238,4.15770004,3531.3,3531.0,0.2833]
[1736263463439,3.2078,3531.7,3530.8,3.2078]
[1736263463747,3.2078,3531.7,3530.0,2.568]
[1736263464147,3.2078,3531.7,3531.0,0.2833]
[1736263464456,0.28325,3531.6,3530.4,7.24512552]
[1736263464652,0.28327,3531.5,3530.4,7.52847552]
[1736263464951,3.2078,3531.1,3530.2,3.2078]
[1736263465146,0.28331,3530.9,3530.0,2.568]
[1736263465349,3.2078,3531.1,3530.0,2.568]
[1736263465743,4.03732552,3532.3,3531.4,0.28327]
[1736263465744,3.2078,3531.8,3531.4,0.28327]
[1736263465948,3.2078,3532.7,3531.6,3.2078]
[1736263466147,3.49091,3533.4,3532.4,0.28318]
[1736263466452,3.2078,3532.6,3531.5,6.03353446]
[1736263466639,3.2078,3532.6,3531.5,2.7678]
[1736263466841,0.28324,3531.7,3531.6,40.8]
[1736263467050,3.2078,3532.1,3530.4,12.54332552]
[1736263467051,0.28326,3531.5,3530.4,12.54332552]
[1736263467346,3.2078,3532.1,3530.9,4.03732552]
[1736263467556,3.2078,3531.7,3530.4,12.54332552]
[1736263467852,0.28327,3531.4,3530.4,12.54332552]
[1736263468049,3.2078,3531.7,3530.4,49.306]
[1736263468250,3.2078,3531.1,3530.2,2.7362]
[1736263468453,0.28336,3530.3,3530.2,2.7362]
[1736263468652,3.2078,3531.4,3530.2,2.7362]
[1736263469051,3.2078,3531.0,3530.2,2.7362]
[1736263469258,3.2078,3530.5,3529.4,2.567]
[1736263469454,3.2078,3530.5,3529.1,3.0202]
[1736263469653,3.2078,3530.1,3529.1,2.7362]
[1736263470054,0.2834,3529.8,3529.1,2.7362]
[1736263470358,3.2078,3530.1,3529.4,3.2078]
[1736263470556,3.2078,3530.1,3529.1,2.7362]
[1736263471253,0.28344,3529.2,3529.1,2.7362]
[1736263471553,3.2078,3529.9,3528.7,40.8]
[1736263471753,0.28348,3528.8,3528.7,40.8]
[1736263472354,0.28356,3527.8,3527.7,2.7764]
[1736263472558,3.2078,3528.2,3526.8,0.284]
[1736263472853,3.2078,3528.2,3527.0,3.2078]
[1736263473054,0.28357,3527.7,3526.8,2.7664]
[1736263473354,3.2078,3527.8,3525.8,0.284]
[1736263473355,3.2078,3527.5,3525.8,0.284]
[1736263473552,3.49139,3527.5,3526.5,0.28366]
[1736263473755,3.49134,3528.0,3527.3,40.8]
[1736263473956,3.2078,3528.5,3527.3,44.0078]
[1736263474554,3.2078,3528.1,3527.3,40.8]
[1736263474753,0.28359,3527.4,3527.3,40.8]
[1736263475258,3.2078,3527.6,3527.3,40.8]
[1736263475454,0.28356,3527.8,3527.3,40.8]
[1736263475653,4.03732552,3528.3,3527.3,40.8]
[1736263475654,3.2078,3527.6,3527.3,40.8]
[1736263475857,0.28355,3527.9,3527.3,40.8]
[1736263476055,3.2078,3528.0,3527.3,40.8]
[1736263476352,3.2078,3528.0,3527.6,0.28357]
[1736263476555,3.2078,3528.0,3527.5,3.2078]
[1736263476748,3.4913,3528.5,3527.5,3.49138]
[1736263476949,3.2078,3528.5,3527.3,40.8]
[1736263477150,3.2078,3528.9,3527.7,3.2078]
[1736263477349,1.41609,3532.1,3527.7,3.2078]
[1736263477350,3.2078,3529.4,3528.2,3.2078]
[1736263477550,4.03732552,3530.3,3528.6,3.2078]
[1736263477551,3.2078,3529.5,3528.6,3.2078]
[1736263477952,3.2078,3529.5,3527.8,2.7883]
[1736263477953,3.2078,3528.7,3527.8,2.7883]
[1736263478259,3.2078,3528.9,3527.9,3.2078]